fUST/lending_fUST_20250208
["ID","MTS","AMOUNT","RATE_DAILY","PERIOD"]
[352189253,1738985442288,-9013.31,0.00010958,2]
[352189254,1738985442297,-500.0,0.00010958,2]
[352189255,1738985442306,-9013.31,0.00010958,2]
[352189256,1738985442315,-9013.31,0.00010958,2]
[352189257,1738985442324,-500.0,0.00010958,2]
[352189258,1738985442333,-9013.31,0.00010958,2]
[352189259,1738985442342,-9013.31,0.00010958,2]
[352189260,1738985442351,-9013.31,0.00010958,2]
[352189261,1738985442361,-9013.31,0.00010958,2]
[352189262,1738985442370,-9013.31,0.00010958,2]
[352189263,1738985442379,-9013.31,0.00010958,2]
[352189264,1738985442388,-9013.31,0.00010958,2]
[352189265,1738985442397,-500.83437261,0.00010958,2]
[352189266,1738985442406,-505.59779539,0.00010958,2]
[352189267,1738985442415,-1171.69,0.00010958,2]
[352189268,1738985442425,-500.0,0.00010958,2]
[352189269,1738985442437,-9013.31,0.00010958,2]
[352189270,1738985442447,-398.13455416,0.00010958,2]
[352189271,1738985442457,-1145.68,0.00010958,2]
[352189272,1738985442466,-500.0,0.00010958,2]
[352189273,1738985442477,-500.0,0.00010958,2]
[352189274,1738985442488,-3237.19,0.00010958,2]
[352189275,1738985442498,-500.0,0.00010958,2]
[352189276,1738985442507,-39138.18,0.00010958,2]
[352189277,1738985442516,-500.0,0.00010958,2]
[352189278,1738985442528,-10912.22,0.00010958,2]
[352189279,1738985442538,-500.0,0.00010958,2]
[352189280,1738985442548,-500.0,0.00010958,2]
[352189281,1738985442558,-500.0,0.00010958,2]
[352189282,1738985442567,-500.0,0.00010958,2]
[352189283,1738985442577,-500.0,0.00010958,2]
[352189284,1738985442587,-500.0,0.00010958,2]
[352189285,1738985442596,-1413.23,0.00010958,2]
[352189286,1738985442606,-500.0,0.00010958,2]
[352189287,1738985442616,-500.76386566,0.00010958,2]
[352189288,1738985442625,-727.76,0.00010958,2]
[352189289,1738985442634,-500.0,0.00010958,2]
[352189290,1738985442644,-500.0,0.00010958,2]
[352189291,1738985442655,-1761.93,0.00010958,2]
[352189292,1738985442664,-500.0,0.00010958,2]
[352189293,1738985442674,-500.0,0.00010958,2]
[352189295,1738985442683,-855.21,0.00010958,2]
[352189297,1738985442693,-500.0,0.00010958,2]
[352189298,1738985442702,-500.0,0.00010958,2]
[352189299,1738985442711,-500.0,0.00010958,2]
[352189300,1738985442720,-741.37,0.00010958,2]
[352189301,1738985442729,-500.0,0.00010958,2]
[352189302,1738985442738,-1349.89,0.00010958,2]
[352189303,1738985442748,-447.61,0.00010958,2]
[352189304,1738985442757,-500.0,0.00010958,2]
[352189305,1738985442766,-500.0,0.00010958,2]
[352189306,1738985442775,-500.0,0.00010958,2]
[352189307,1738985442784,-500.0,0.00010958,2]
[352189308,1738985442794,-700.34,0.00010958,2]
[352189309,1738985442803,-500.0,0.00010958,2]
[352189310,1738985442813,-500.0,0.00010958,2]
[352189311,1738985442826,-1154.59,0.00010958,2]
[352189312,1738985442837,-500.0,0.00010958,2]
[352189314,1738985442846,-500.0,0.00010958,2]
[352189315,1738985442855,-500.0,0.00010958,2]
[352189316,1738985442865,-500.0,0.00010958,2]
[352189317,1738985442874,-384.98105427,0.00010958,2]
[352189318,1738985442884,-500.0,0.00010958,2]
[352189319,1738985442893,-500.0,0.00010958,2]
[352189320,1738985442902,-1131.79,0.00010958,2]
[352189321,1738985442912,-222.29594734,0.00010958,2]
[352189322,1738985442924,-500.0,0.00010958,2]
[352189323,1738985442933,-500.61542001,0.00010958,2]
[352189324,1738985442943,-500.0,0.00010958,2]
[352189325,1738985442952,-500.0,0.00010958,2]
[352189326,1738985442962,-500.0,0.00010958,2]
[352189327,1738985442972,-500.0,0.00010958,2]
[352189328,1738985442982,-500.0,0.00010958,2]
[352189329,1738985442991,-500.0,0.00010958,2]
[352189330,1738985443002,-500.0,0.00010958,2]
[352189331,1738985443011,-500.0,0.00010958,2]
[352189332,1738985443021,-500.0,0.00010958,2]
[352189333,1738985443030,-500.0,0.00010958,2]
[352189334,1738985443039,-500.0,0.00010958,2]
[352189335,1738985443049,-500.0,0.00010958,2]
[352189336,1738985443058,-500.0,0.00010958,2]
[352189337,1738985443067,-500.0,0.00010958,2]
[352189338,1738985443076,-500.0,0.00010958,2]
[352189339,1738985443085,-500.0,0.00010958,2]
[352189340,1738985443094,-500.0,0.00010958,2]
[352189341,1738985443103,-500.0,0.00010958,2]
[352189342,1738985443113,-500.0,0.00010958,2]
[352189343,1738985443122,-500.0,0.00010958,2]
[352189344,1738985443132,-4685.12,0.00010958,2]
[352189345,1738985443141,-500.83085211,0.00010958,2]
[352189346,1738985443150,-2555.37,0.00010958,2]
[352189347,1738985443162,-500.0,0.00010958,2]
[352189348,1738985443174,-500.0,0.00010958,2]
[352189350,1738985443183,-500.59712672,0.00010958,2]
[352189351,1738985443192,-546.92,0.00010958,2]
[352189352,1738985443202,-504.51816725,0.00010958,2]
[352189353,1738985443212,-500.0,0.00010958,2]
[352189354,1738985443221,-627.17,0.00010958,2]
[352189355,1738985443230,-1698.22,0.00010958,2]
[352189356,1738985443239,-501.57253943,0.00010958,2]
[352189357,1738985443249,-507.79,0.00010958,2]
[352189358,1738985443258,-2561.59,0.00010958,2]
[352189359,1738985443267,-594.57,0.00010958,2]
[352189360,1738985443276,-500.0,0.00010958,2]
[352189361,1738985443285,-500.0,0.00010958,2]
[352189362,1738985443411,-500.73384987,0.00010958,2]
[352189363,1738985443437,-925.18,0.00010958,2]
[352189364,1738985443446,-500.0,0.00010958,2]
[352189365,1738985443456,-500.0,0.00010958,2]
[352189366,1738985443466,-500.0,0.00010958,2]
[352189367,1738985443475,-3671.95,0.00010958,2]
[352189368,1738985443485,-500.0,0.00010958,2]
[352189369,1738985443495,-500.0,0.00010958,2]
[352189370,1738985443504,-500.82314003,0.00010958,2]
[352189371,1738985443514,-500.0,0.00010958,2]
[352189372,1738985443524,-918.75,0.00010958,2]
[352189373,1738985443534,-1319.78,0.00010958,2]
[352189374,1738985443543,-500.0,0.00010958,2]
[352189375,1738985443553,-500.0,0.00010958,2]
[352189376,1738985443563,-500.0,0.00010958,2]
[352189377,1738985443573,-501.09278847,0.00010958,2]
[352189378,1738985443583,-500.0,0.00010958,2]
[352189379,1738985443592,-500.0,0.00010958,2]
[352189380,1738985443601,-500.67048316,0.00010958,2]
[352189381,1738985443611,-623.81,0.00010958,2]
[352189382,1738985443620,-500.0,0.00010958,2]
[352189383,1738985443629,-500.0,0.00010958,2]
[352189384,1738985443639,-500.0,0.00010958,2]
[352189385,1738985443653,-500.0,0.00010958,2]
[352189386,1738985443668,-604.58,0.00010958,2]
[352189387,1738985443677,-500.0,0.00010958,2]
[352189388,1738985443686,-297.49293765,0.00010958,2]
[352189389,1738985443696,-555.38243949,0.00010958,2]
[352189390,1738985443706,-500.0,0.00010958,2]
[352189391,1738985443715,-500.0,0.00010958,2]
[352189392,1738985443725,-500.0,0.00010958,2]
[352189393,1738985443734,-1055.76,0.00010958,2]
[352189394,1738985443743,-501.54950664,0.00010958,2]
[352189395,1738985443752,-500.0,0.00010958,2]
[352189396,1738985443762,-500.0,0.00010958,2]
[352189397,1738985443771,-501.50501114,0.00010958,2]
[352189398,1738985443780,-500.0,0.00010958,2]
[352189399,1738985443790,-424.53784249,0.00010958,2]
[352189400,1738985443799,-500.0,0.00010958,2]
[352189401,1738985443809,-500.0,0.00010958,2]
[352189402,1738985443818,-500.0,0.00010958,2]
[352189403,1738985443828,-500.0,0.00010958,2]
[352189404,1738985443838,-500.0,0.00010958,2]
[352189405,1738985443847,-507.54005291,0.00010958,2]
[352189406,1738985443856,-500.0,0.00010958,2]
[352189407,1738985443866,-500.0,0.00010958,2]
[352189408,1738985443875,-501.44539442,0.00010958,2]
[352189409,1738985443885,-1482.78,0.00010959,2]
[352189410,1738985443894,-1235.65,0.00010959,2]
[352189411,1738985443903,-1029.71,0.00010959,2]
[352189412,1738985443913,-858.09,0.00010959,2]
[352189413,1738985443925,-715.07,0.00010959,2]
[352189414,1738985443935,-595.89,0.00010959,2]
[352189415,1738985443945,-496.58,0.00010959,2]
[352189416,1738985443954,-413.82,0.00010959,2]
[352189417,1738985443965,-344.85,0.00010959,2]
[352189418,1738985443974,-287.37,0.00010959,2]
[352189419,1738985443984,-500.0,0.00010972,2]
[352189420,1738985443994,-500.0,0.00010973,2]
[352189421,1738985444006,-532.56805237,0.00010973,2]
[352189422,1738985444016,-204.6928309,0.00010973,2]
[352189423,1738985444026,-501.62037964,0.00010973,2]
[352189424,1738985444035,-500.35813474,0.00010973,2]
[352189425,1738985444045,-300.16278414,0.00011,2]
[352189426,1738985444055,-500.0,0.00011073,2]
[352189427,1738985444064,-500.0,0.00011073,2]
[352189428,1738985444074,-500.98119301,0.00011073,2]
[352189429,1738985444084,-500.1649634,0.00011073,2]
[352189430,1738985444093,-500.9013982,0.00011073,2]
[352189431,1738985444103,-9013.31,0.00011094,2]
[352189432,1738985444112,-9013.31,0.00011094,2]
[352189433,1738985444121,-9013.31,0.00011094,2]
[352189434,1738985444131,-9013.31,0.00011094,2]
[352189435,1738985444140,-9013.31,0.00011094,2]
[352189436,1738985444151,-9013.31,0.00011094,2]
[352189437,1738985444160,-9013.31,0.00011094,2]
[352189438,1738985444170,-9013.31,0.00011094,2]
[352189439,1738985444180,-9013.31,0.00011094,2]
[352189440,1738985444189,-9013.47850851,0.00011094,2]
[352189441,1738985444198,-504.40682222,0.00011095,2]
[352189442,1738985444208,-501.95799065,0.00011095,2]
[352189443,1738985444217,-501.0090478,0.00011095,2]
[352189444,1738985444226,-237.74358238,0.00011095,2]
[352189445,1738985444236,-500.0,0.00011095,2]
[352189446,1738985444245,-500.0,0.00011095,2]
[352189447,1738985444256,-500.0,0.00011095,2]
[352189448,1738985444266,-504.71003298,0.00011095,2]
[352189449,1738985444275,-500.0,0.00011095,2]
[352189450,1738985444285,-500.0,0.00011095,2]
[352189451,1738985444295,-501.50607289,0.00011095,2]
[352189452,1738985444305,-500.0,0.00011095,2]
[352189453,1738985444315,-500.0,0.00011095,2]
[352189454,1738985444324,-503.55351873,0.00011095,2]
[352189455,1738985444334,-504.4176464,0.00011095,2]
[352189456,1738985444344,-500.0,0.00011095,2]
[352189457,1738985444353,-500.0,0.00011095,2]
[352189458,1738985444363,-500.0,0.00011095,2]
[352189459,1738985444372,-500.0,0.00011095,2]
[352189460,1738985444383,-500.0,0.00011095,2]
[352189461,1738985444394,-500.0,0.00011095,2]
[352189462,1738985444405,-500.0,0.00011095,2]
[352189463,1738985444415,-500.0,0.00011095,2]
[352189464,1738985444425,-500.0,0.00011095,2]
[352189465,1738985444434,-500.0,0.00011095,2]
[352189466,1738985444444,-504.78991314,0.00011095,2]
[352189467,1738985444453,-506.59468459,0.00011095,2]
[352189468,1738985444463,-500.0,0.00011095,2]
[352189469,1738985444473,-500.0,0.00011095,2]
[352189470,1738985444483,-500.0,0.00011095,2]
[352189471,1738985444492,-423.42867661,0.00011095,2]
[352189472,1738985444502,-500.0,0.00011095,2]
[352189473,1738985444512,-503.1037348,0.00011095,2]
[352189474,1738985444521,-503.62015603,0.00011095,2]
[352189475,1738985444531,-504.76946047,0.00011095,2]
[352189476,1738985444540,-418.64516595,0.00011095,2]
[352189477,1738985444549,-503.81779582,0.00011095,2]
[352189478,1738985444558,-504.48590522,0.00011095,2]
[352189479,1738985444568,-503.79633868,0.00011095,2]
[352189480,1738985444578,-641.76692231,0.00011095,2]
[352189481,1738985444587,-276.87975725,0.00011095,2]
[352189482,1738985444597,-500.0,0.00011095,2]
[352189483,1738985444606,-327.4861276,0.00011095,2]
[352189484,1738985444616,-505.53786453,0.00011095,2]
[352189485,1738985444625,-500.0,0.00011095,2]
[352189486,1738985444634,-500.0,0.00011095,2]
[352189487,1738985444644,-500.0,0.00011095,2]
[352189488,1738985444653,-500.0,0.00011095,2]
[352189489,1738985444663,-500.0,0.00011095,2]
[352189490,1738985444672,-500.0,0.00011095,2]
[352189491,1738985444681,-500.0,0.00011095,2]
[352189492,1738985444691,-508.86808716,0.00011095,2]
[352189493,1738985444700,-500.0,0.00011095,2]
[352189494,1738985444710,-500.0,0.00011095,2]
[352189495,1738985444719,-442.07753449,0.00011095,2]
[352189496,1738985444728,-503.86530471,0.00011095,2]
[352189497,1738985444738,-503.4425451,0.00011095,2]
[352189498,1738985444747,-500.0,0.00011095,2]
[352189499,1738985444759,-500.0,0.00011095,2]
[352189500,1738985444778,-501.64481347,0.00011095,2]
[352189501,1738985444789,-500.0,0.00011095,2]
[352189502,1738985444799,-500.0,0.00011095,2]
[352189503,1738985444809,-605.77,0.00011095,2]
[352189504,1738985444819,-500.0,0.00011095,2]
[352189505,1738985444830,-503.18202209,0.00011095,2]
[352189506,1738985444845,-500.0,0.00011095,2]
[352189507,1738985444855,-500.0,0.00011095,2]
[352189508,1738985444866,-500.0,0.00011095,2]
[352189509,1738985444875,-188.52916399,0.00011095,2]
[352189510,1738985444885,-292.11964998,0.00011095,2]
[352189511,1738985444898,-500.0,0.00011095,2]
[352189512,1738985444909,-500.0,0.00011095,2]
[352189513,1738985444922,-512.02138416,0.00011095,2]
[352189514,1738985444933,-501.9727286,0.00011095,2]
[352189515,1738985444942,-500.0,0.00011095,2]
[352189516,1738985444951,-500.0,0.00011095,2]
[352189517,1738985444961,-500.0,0.00011095,2]
[352189518,1738985444971,-500.0,0.00011095,2]
[352189519,1738985444980,-503.32907393,0.00011095,2]
[352189520,1738985444989,-750.71,0.00011095,2]
[352189521,1738985444999,-500.0,0.00011095,2]
[352189522,1738985445010,-500.0,0.00011095,2]
[352189523,1738985445020,-535.76547488,0.00011095,2]
[352189524,1738985445029,-500.0,0.00011095,2]
[352189525,1738985445039,-500.0,0.00011095,2]
[352189526,1738985445048,-500.0,0.00011095,2]
[352189527,1738985445058,-502.76170661,0.00011095,2]
[352189528,1738985445067,-789.2,0.00011095,2]
[352189529,1738985445076,-1032.44,0.00011095,2]
[352189530,1738985445085,-503.21086682,0.00011095,2]
[352189531,1738985445094,-500.0,0.00011095,2]
[352189532,1738985445103,-500.0,0.00011095,2]
[352189533,1738985445113,-500.0,0.00011095,2]
[352189534,1738985445123,-500.0,0.00011095,2]
[352189535,1738985445132,-500.0,0.00011095,2]
[352189536,1738985445141,-500.0,0.00011095,2]
[352189537,1738985445152,-500.0,0.00011095,2]
[352189538,1738985445161,-543.05,0.00011095,2]
[352189539,1738985445170,-500.0,0.00011095,2]
[352189540,1738985445180,-410.73778991,0.00011095,2]
[352189541,1738985445189,-500.0,0.00011095,2]
[352189542,1738985445198,-500.0,0.00011095,2]
[352189543,1738985445207,-500.0,0.00011095,2]
[352189544,1738985445217,-500.0,0.00011095,2]
[352189545,1738985445226,-500.0,0.00011095,2]
[352189546,1738985445235,-500.0,0.00011095,2]
[352189547,1738985445245,-548.48,0.00011095,2]
[352189548,1738985445254,-503.25355176,0.00011095,2]
[352189549,1738985445263,-500.0,0.00011095,2]
[352189550,1738985445272,-500.0,0.00011095,2]
[352189551,1738985445282,-500.0,0.00011095,2]
[352189552,1738985445292,-500.0,0.00011095,2]
[352189553,1738985445302,-1189.78,0.00011095,2]
[352189554,1738985445312,-500.0,0.00011095,2]
[352189555,1738985445321,-500.0,0.00011095,2]
[352189556,1738985445330,-500.0,0.00011095,2]
[352189557,1738985445339,-500.0,0.00011095,2]
[352189558,1738985445349,-500.0,0.00011095,2]
[352189559,1738985445364,-500.0,0.00011095,2]
[352189560,1738985445381,-500.0,0.00011095,2]
[352189561,1738985445390,-1218.68,0.00011095,2]
[352189562,1738985445400,-500.0,0.00011095,2]
[352189563,1738985445409,-500.0,0.00011095,2]
[352189564,1738985445419,-500.0,0.00011095,2]
[352189565,1738985445428,-500.0,0.00011095,2]
[352189566,1738985445438,-500.0,0.00011095,2]
[352189567,1738985445447,-500.0,0.00011095,2]
[352189568,1738985445456,-500.0,0.00011095,2]
[352189569,1738985445466,-500.0,0.00011095,2]
[352189570,1738985445475,-500.0,0.00011095,2]
[352189571,1738985445484,-180.05426533,0.00011095,2]
[352189572,1738985445493,-885.63,0.00011095,2]
[352189573,1738985445503,-502.38696587,0.00011095,2]
[352189574,1738985445512,-500.0,0.00011095,2]
[352189575,1738985445521,-500.0,0.00011095,2]
[352189576,1738985445532,-500.0,0.00011095,2]
[352189577,1738985445542,-504.73366733,0.00011095,2]
[352189578,1738985445551,-500.0,0.00011095,2]
[352189579,1738985445560,-502.27204048,0.00011095,2]
[352189580,1738985445571,-505.73388672,0.00011095,2]
[352189581,1738985445580,-500.0,0.00011095,2]
[352189582,1738985445590,-500.0,0.00011095,2]
[352189583,1738985445600,-502.34522757,0.00011095,2]
[352189584,1738985445609,-500.0,0.00011095,2]
[352189585,1738985445619,-500.0,0.00011095,2]
[352189586,1738985445630,-500.0,0.00011095,2]
[352189587,1738985445640,-501.73210292,0.00011095,2]
[352189588,1738985445650,-501.91577813,0.00011095,2]
[352189589,1738985445661,-503.98788364,0.00011095,2]
[352189590,1738985445670,-501.76627127,0.00011095,2]
[352189591,1738985445680,-500.0,0.00011095,2]
[352189592,1738985445689,-500.0,0.00011095,2]
[352189593,1738985445699,-504.27024746,0.00011095,2]
[352189594,1738985445708,-329.28606819,0.00011095,2]
[352189595,1738985445717,-503.72872154,0.00011095,2]
[352189596,1738985445727,-503.65748446,0.00011095,2]
[352189597,1738985445736,-559.9,0.00011095,2]
[352189598,1738985445745,-503.87945351,0.00011095,2]
[352189599,1738985445754,-247.49734324,0.00011095,2]
[352189600,1738985445763,-500.0,0.00011095,2]
[352189601,1738985445772,-1250.39,0.00011095,2]
[352189602,1738985445782,-500.0,0.00011095,2]
[352189604,1738985445792,-500.0,0.00011095,2]
[352189605,1738985445801,-500.0,0.00011095,2]
[352189607,1738985445810,-505.56373186,0.00011095,2]
[352189609,1738985445819,-500.0,0.00011095,2]
[352189611,1738985445828,-501.89730355,0.00011095,2]
[352189613,1738985445837,-500.0,0.00011095,2]
[352189616,1738985445847,-500.0,0.00011095,2]
[352189618,1738985445857,-500.87979671,0.00011095,2]
[352189620,1738985445866,-500.0,0.00011095,2]
[352189622,1738985445875,-500.0,0.00011095,2]
[352189624,1738985445885,-500.0,0.00011095,2]
[352189626,1738985445894,-500.0,0.00011095,2]
[352189628,1738985445904,-500.0,0.00011095,2]
[352189631,1738985445914,-500.0,0.00011095,2]
[352189634,1738985445927,-500.0,0.00011095,2]
[352189636,1738985445938,-500.0,0.00011095,2]
[352189637,1738985445948,-500.0,0.00011095,2]
[352189639,1738985445958,-500.0,0.00011095,2]
[352189640,1738985445968,-500.0,0.00011095,2]
[352189642,1738985445977,-500.0,0.00011095,2]
[352189643,1738985445986,-500.0,0.00011095,2]
[352189645,1738985445995,-500.0,0.00011095,2]
[352189647,1738985446006,-839.17,0.00011095,2]
[352189648,1738985446015,-500.0,0.00011095,2]
[352189650,1738985446025,-502.99304166,0.00011095,2]
[352189651,1738985446034,-500.0,0.00011095,2]
[352189652,1738985446043,-500.0,0.00011095,2]
[352189653,1738985446052,-3004.68,0.00011095,2]
[352189654,1738985446061,-622.48,0.00011095,2]
[352189655,1738985446070,-1216.46,0.00011095,2]
[352189656,1738985446079,-500.0,0.00011095,2]
[352189657,1738985446088,-500.0,0.00011095,2]
[352189658,1738985446097,-500.0,0.00011095,2]
[352189659,1738985446106,-503.9853436,0.00011095,2]
[352189660,1738985446115,-2717.17,0.00011095,2]
[352189661,1738985446124,-1137.3,0.00011095,2]
[352189662,1738985446133,-1104.28,0.00011095,2]
[352189663,1738985446142,-500.0,0.00011095,2]
[352189664,1738985446152,-2794.13,0.00011095,2]
[352189665,1738985446163,-500.0,0.00011095,2]
[352189666,1738985446172,-12543.51,0.00011095,2]
[352189667,1738985446182,-500.0,0.00011095,2]
[352189668,1738985446194,-518.84,0.00011095,2]
[352189669,1738985446204,-1886.98,0.00011095,2]
[352189670,1738985446213,-557.82,0.00011095,2]
[352189671,1738985446222,-500.0,0.00011095,2]
[352189672,1738985446232,-500.0,0.00011095,2]
[352189673,1738985446241,-500.0,0.00011095,2]
[352189674,1738985446250,-500.0,0.00011095,2]
[352189675,1738985446260,-500.0,0.00011095,2]
[352189676,1738985446269,-500.0,0.00011095,2]
[352189677,1738985446278,-503.57221153,0.00011095,2]
[352189678,1738985446286,-914.63,0.00011095,2]
[352189679,1738985446296,-500.0,0.00011095,2]
[352189680,1738985446306,-500.0,0.00011095,2]
[352189681,1738985446315,-500.0,0.00011095,2]
[352189682,1738985446324,-500.0,0.00011095,2]
[352189683,1738985446335,-500.0,0.00011095,2]
[352189684,1738985446345,-500.0,0.00011095,2]
[352189685,1738985446355,-500.0,0.00011095,2]
[352189686,1738985446365,-500.0,0.00011095,2]
[352189687,1738985446375,-500.0,0.00011095,2]
[352189688,1738985446384,-500.0,0.00011095,2]
[352189689,1738985446393,-505.87272741,0.00011095,2]
[352189690,1738985446402,-500.0,0.00011095,2]
[352189691,1738985446412,-2420.52,0.00011095,2]
[352189692,1738985446421,-501.29739721,0.00011095,2]
[352189693,1738985446430,-500.0,0.00011095,2]
[352189694,1738985446439,-949.27,0.00011095,2]
[352189695,1738985446448,-508.69,0.00011095,2]
[352189696,1738985446457,-502.21787482,0.00011095,2]
[352189697,1738985446467,-503.89976115,0.00011095,2]
[352189698,1738985446476,-1171.69,0.00011095,2]
[352189699,1738985446486,-501.47443994,0.00011095,2]
[352189700,1738985446494,-1145.68,0.00011095,2]
[352189701,1738985446504,-500.0,0.00011095,2]
[352189702,1738985446513,-500.0,0.00011095,2]
[352189703,1738985446521,-3237.19,0.00011095,2]
[352189704,1738985446529,-500.0,0.00011095,2]
[352189705,1738985446539,-39138.18,0.00011095,2]
[352189706,1738985446548,-500.0,0.00011095,2]
[352189707,1738985446558,-10912.22,0.00011095,2]
[352189708,1738985446567,-510.36582179,0.00011095,2]
[352189709,1738985446576,-500.0,0.00011095,2]
[352189710,1738985446586,-218.1979383,0.00011095,2]
[352189711,1738985446595,-500.0,0.00011095,2]
[352189712,1738985446605,-500.0,0.00011095,2]
[352189713,1738985446615,-502.39017115,0.00011095,2]
[352189714,1738985446625,-1413.23,0.00011095,2]
[352189715,1738985446635,-500.0,0.00011095,2]
[352189716,1738985446646,-727.76,0.00011095,2]
[352189717,1738985446655,-500.0,0.00011095,2]
[352189718,1738985446666,-1761.93,0.00011095,2]
[352189719,1738985446677,-500.0,0.00011095,2]
[352189720,1738985446687,-500.0,0.00011095,2]
[352189721,1738985446698,-855.21,0.00011095,2]
[352189722,1738985446707,-503.84211896,0.00011095,2]
[352189723,1738985446715,-500.0,0.00011095,2]
[352189724,1738985446724,-552.50242799,0.00011095,2]
[352189725,1738985446734,-741.37,0.00011095,2]
[352189726,1738985446743,-500.0,0.00011095,2]
[352189727,1738985446753,-1349.89,0.00011095,2]
[352189728,1738985446762,-500.0,0.00011095,2]
[352189729,1738985446771,-500.0,0.00011095,2]
[352189730,1738985446914,-500.0,0.00011095,2]
[352189731,1738985446929,-500.77310309,0.00011095,2]
[352189732,1738985446939,-700.34,0.00011095,2]
[352189733,1738985446948,-500.0,0.00011095,2]
[352189734,1738985446958,-500.0,0.00011095,2]
[352189735,1738985446967,-1154.59,0.00011095,2]
[352189736,1738985446977,-500.0,0.00011095,2]
[352189737,1738985446986,-501.18953021,0.00011095,2]
[352189738,1738985446996,-500.0,0.00011095,2]
[352189739,1738985447006,-500.0,0.00011095,2]
[352189740,1738985447016,-500.0,0.00011095,2]
[352189741,1738985447026,-500.0,0.00011095,2]
[352189742,1738985447035,-1131.79,0.00011095,2]
[352189743,1738985447044,-503.12982092,0.00011095,2]
[352189744,1738985447054,-500.0,0.00011095,2]
[352189745,1738985447063,-500.0,0.00011095,2]
[352189746,1738985447072,-500.0,0.00011095,2]
[352189747,1738985447082,-500.0,0.00011095,2]
[352189748,1738985447091,-500.0,0.00011095,2]
[352189749,1738985447101,-500.0,0.00011095,2]
[352189750,1738985447111,-500.0,0.00011095,2]
[352189751,1738985447120,-500.0,0.00011095,2]
[352189752,1738985447129,-500.0,0.00011095,2]
[352189753,1738985447139,-500.0,0.00011095,2]
[352189754,1738985447148,-503.31847983,0.00011095,2]
[352189755,1738985447158,-309.6872035,0.00011095,2]
[352189756,1738985447167,-500.0,0.00011095,2]
[352189757,1738985447177,-500.0,0.00011095,2]
[352189758,1738985447186,-500.0,0.00011095,2]
[352189759,1738985447196,-500.0,0.00011095,2]
[352189760,1738985447207,-500.0,0.00011095,2]
[352189761,1738985447217,-500.98861283,0.00011095,2]
[352189762,1738985447226,-500.0,0.00011095,2]
[352189763,1738985447235,-4685.12,0.00011095,2]
[352189764,1738985447245,-2555.37,0.00011095,2]
[352189765,1738985447255,-500.0,0.00011095,2]
[352189766,1738985447265,-500.0,0.00011095,2]
[352189767,1738985447274,-546.92,0.00011095,2]
[352189768,1738985447284,-501.40065633,0.00011095,2]
[352189769,1738985447293,-627.17,0.00011095,2]
[352189770,1738985447303,-1698.22,0.00011095,2]
[352189771,1738985447312,-507.79,0.00011095,2]
[352189772,1738985447321,-2561.59,0.00011095,2]
[352189773,1738985447331,-594.57,0.00011095,2]
[352189774,1738985447340,-501.36482393,0.00011095,2]
[352189775,1738985447350,-925.18,0.00011095,2]
[352189776,1738985447359,-500.0,0.00011095,2]
[352189777,1738985447368,-500.0,0.00011095,2]
[352189778,1738985447378,-503.62409204,0.00011095,2]
[352189779,1738985447387,-3671.95,0.00011095,2]